[Event "*** Titled Tuesday Blitz"]
[Site "Chess.com"]
[Date "2021.03.02"]
[Round "3"]
[White "masrahi"]
[Black "Sokoloco"]
[Result "0-1"]
[WhiteElo "2228"]
[BlackElo "2439"]
[TimeControl "180+1"]
[EndTime "10:30:55 PST"]
[Termination "Sokoloco won by resignation"]

1. d4 {[%clk 0:03:00.9]} 1... d6 {[%clk 0:02:59.6]} 2. Nf3 {[%clk 0:03:00.1]}
2... g6 {[%clk 0:02:58.9]} 3. Bf4 {[%clk 0:02:59.4]} 3... Bg7 {[%clk 0:02:58.9]}
4. e3 {[%clk 0:02:59.9]} 4... Nf6 {[%clk 0:02:59]} 5. h3 {[%clk 0:03:00.5]} 5...
O-O {[%clk 0:02:57]} 6. Be2 {[%clk 0:03:00.9]} 6... b6 {[%clk 0:02:57.7]} 7. O-O
{[%clk 0:03:01.4]} 7... Bb7 {[%clk 0:02:58.4]} 8. a4 {[%clk 0:03:01.6]} 8... a6
{[%clk 0:02:55.9]} 9. Na3 {[%clk 0:02:59.3]} 9... Re8 {[%clk 0:02:53.4]} 10. Bh2
{[%clk 0:02:58.6]} 10... Nbd7 {[%clk 0:02:52]} 11. Nc4 {[%clk 0:02:58.5]} 11...
Ne4 {[%clk 0:02:43]} 12. c3 {[%clk 0:02:55.8]} 12... e5 {[%clk 0:02:40.5]} 13.
Qc2 {[%clk 0:02:49.8]} 13... Qe7 {[%clk 0:02:35.9]} 14. Rfd1 {[%clk 0:02:48.5]}
14... f5 {[%clk 0:02:30.9]} 15. dxe5 {[%clk 0:02:47.5]} 15... Nxe5 {[%clk
0:02:28.3]} 16. Bxe5 {[%clk 0:02:24.2]} 16... dxe5 {[%clk 0:02:29.2]} 17. Bf1
{[%clk 0:02:17.1]} 17... Rad8 {[%clk 0:02:27.2]} 18. Rxd8 {[%clk 0:02:15]} 18...
Rxd8 {[%clk 0:02:28.1]} 19. Rd1 {[%clk 0:02:14.6]} 19... Nd6 {[%clk 0:02:26.9]}
20. Qb3 {[%clk 0:02:08.3]} 20... Kf8 {[%clk 0:02:25.4]} 21. Nxd6 {[%clk
0:02:07]} 21... Rxd6 {[%clk 0:02:26.3]} 22. Be2 {[%clk 0:01:58.9]} 22... Qd7
{[%clk 0:02:21.6]} 23. Rxd6 {[%clk 0:01:48.5]} 23... Qxd6 {[%clk 0:02:22.5]} 24.
Qd1 {[%clk 0:01:47.9]} 24... Ke7 {[%clk 0:02:08.8]} 25. Kf1 {[%clk 0:01:34.5]}
25... Qxd1+ {[%clk 0:01:58.5]} 26. Bxd1 {[%clk 0:01:33.1]} 26... Kd6 {[%clk
0:01:52.8]} 27. Be2 {[%clk 0:01:26.2]} 27... Bf6 {[%clk 0:01:50.5]} 28. h4
{[%clk 0:01:19.9]} 28... Bxf3 {[%clk 0:01:45.2]} 29. Bxf3 {[%clk 0:01:19.4]}
29... Bxh4 {[%clk 0:01:45.9]} 30. g3 {[%clk 0:01:14.9]} 30... Bf6 {[%clk
0:01:45.5]} 31. Be2 {[%clk 0:01:14.8]} 31... a5 {[%clk 0:01:39]} 32. Ke1 {[%clk
0:01:12.8]} 32... e4 {[%clk 0:01:36.2]} 33. Kd2 {[%clk 0:01:02.2]} 33... Be5
{[%clk 0:01:26.5]} 34. Bc4 {[%clk 0:01:00.7]} 34... Ke7 {[%clk 0:01:26]} 35. Ke2
{[%clk 0:00:56.2]} 35... Kf6 {[%clk 0:01:23.6]} 36. Bd5 {[%clk 0:00:53.9]} 36...
h5 {[%clk 0:01:17.7]} 37. Kf1 {[%clk 0:00:50.9]} 37... g5 {[%clk 0:01:15.9]} 38.
Kg2 {[%clk 0:00:42.9]} 38... Ke7 {[%clk 0:00:27.2]} 39. Bc6 {[%clk 0:00:34.9]}
39... Bf6 {[%clk 0:00:24.7]} 40. Kf1 {[%clk 0:00:26]} 40... g4 {[%clk
0:00:22.2]} 41. Bb5 {[%clk 0:00:21.8]} 41... h4 {[%clk 0:00:21]} 42. gxh4 {[%clk
0:00:20.8]} 42... Bxh4 {[%clk 0:00:21.9]} 43. Kg2 {[%clk 0:00:21.3]} 43... Kf6
{[%clk 0:00:22.6]} 44. Bd7 {[%clk 0:00:20.6]} 44... Ke5 {[%clk 0:00:23.3]} 45.
Bc8 {[%clk 0:00:18]} 45... Be7 {[%clk 0:00:19.5]} 46. Bd7 {[%clk 0:00:17.9]}
46... Bd6 {[%clk 0:00:19.5]} 47. Be8 {[%clk 0:00:17.9]} 47... Kf6 {[%clk
0:00:19.9]} 48. Bd7 {[%clk 0:00:17.6]} 48... Ke5 {[%clk 0:00:20.3]} 49. Be8
{[%clk 0:00:17.6]} 49... Ke6 {[%clk 0:00:20.8]} 50. Bb5 {[%clk 0:00:15.9]} 50...
Be5 {[%clk 0:00:20.4]} 51. Bc4+ {[%clk 0:00:15.4]} 51... Kf6 {[%clk 0:00:20.9]}
52. Bb5 {[%clk 0:00:15.2]} 52... f4 {[%clk 0:00:14.2]} 53. exf4 {[%clk
0:00:12.7]} 53... Bxf4 {[%clk 0:00:15.1]} 54. Bc6 {[%clk 0:00:12.1]} 54... e3
{[%clk 0:00:10.6]} 55. fxe3 {[%clk 0:00:08.5]} 55... Bxe3 {[%clk 0:00:11.5]} 56.
b4 {[%clk 0:00:07.5]} 56... Bd2 {[%clk 0:00:05]} 57. bxa5 {[%clk 0:00:07.1]}
57... bxa5 {[%clk 0:00:05.9]} 58. c4 {[%clk 0:00:06.9]} 58... Be1 {[%clk
0:00:05.9]} 59. Bb5 {[%clk 0:00:04.7]} 59... Ke5 {[%clk 0:00:06]} 60. c5 {[%clk
0:00:04.4]} 60... Kd5 {[%clk 0:00:06]} 61. c6 {[%clk 0:00:04.1]} 61... Kc5
{[%clk 0:00:06.6]} 62. Kf1 {[%clk 0:00:03.8]} 62... Bc3 {[%clk 0:00:05.8]} 63.
Kg2 {[%clk 0:00:03.9]} 63... Be5 {[%clk 0:00:06.7]} 64. Kg1 {[%clk 0:00:03.8]}
64... Bd6 {[%clk 0:00:07.6]} 65. Kg2 {[%clk 0:00:04]} 65... Kd4 {[%clk
0:00:08.5]} 66. Kg1 {[%clk 0:00:04.3]} 66... Ke3 {[%clk 0:00:09.4]} 67. Kg2
{[%clk 0:00:04.6]} 67... Kf4 {[%clk 0:00:10.1]} 68. Bf1 {[%clk 0:00:04.9]} 68...
Bc5 {[%clk 0:00:09.3]} 69. Bb5 {[%clk 0:00:05.3]} 69... Kg5 {[%clk 0:00:10.1]}
70. Bf1 {[%clk 0:00:05.6]} 70... Bd4 {[%clk 0:00:11]} 71. Bb5 {[%clk 0:00:06.1]}
71... Be5 {[%clk 0:00:11.9]} 72. Bf1 {[%clk 0:00:06.6]} 72... Kf6 {[%clk
0:00:12.8]} 73. Bb5 {[%clk 0:00:07.2]} 73... Ke6 {[%clk 0:00:13.7]} 74. Bc4+
{[%clk 0:00:05.8]} 74... Kd6 {[%clk 0:00:14.6]} 75. Bb5 {[%clk 0:00:06.7]} 75...
Kc5 {[%clk 0:00:15.5]} 76. Kg1 {[%clk 0:00:07]} 76... Kd4 {[%clk 0:00:14]} 77.
Kg2 {[%clk 0:00:07.9]} 77... Ke3 {[%clk 0:00:14.9]} 78. Bc4 {[%clk 0:00:07.3]}
78... Kd2 {[%clk 0:00:15]} 79. Bb5 {[%clk 0:00:08.2]} 79... Kc3 {[%clk
0:00:15.4]} 80. Ba6 {[%clk 0:00:08.4]} 80... Bd6 {[%clk 0:00:16.3]} 81. Bb5
{[%clk 0:00:09.2]} 81... Kb4 {[%clk 0:00:17]} 82. Kg1 {[%clk 0:00:09.5]} 82...
g3 {[%clk 0:00:15.5]} 83. Kg2 {[%clk 0:00:10.4]} 83... Kc3 {[%clk 0:00:15.6]}
84. Kg1 {[%clk 0:00:10.8]} 84... Kd4 {[%clk 0:00:16.5]} 85. Kg2 {[%clk
0:00:11.1]} 85... Ke3 {[%clk 0:00:17.4]} 86. Bc4 {[%clk 0:00:11.2]} 86... Kf4
{[%clk 0:00:18.3]} 87. Bb5 {[%clk 0:00:11.6]} 87... Ke5 {[%clk 0:00:18.8]} 88.
Bc4 {[%clk 0:00:11.7]} 88... Kd4 {[%clk 0:00:18.3]} 89. Bb5 {[%clk 0:00:12.6]}
89... Bf4 {[%clk 0:00:17.2]} 90. Kg1 {[%clk 0:00:11.8]} 90... Ke5 {[%clk
0:00:18.1]} 91. Kg2 {[%clk 0:00:12.3]} 91... Kf6 {[%clk 0:00:19]} 92. Kg1 {[%clk
0:00:12.6]} 92... Kg5 {[%clk 0:00:19.9]} 93. Kg2 {[%clk 0:00:13.5]} 93... Kg4
{[%clk 0:00:20.4]} 94. Kg1 {[%clk 0:00:13.9]} 94... Kf3 {[%clk 0:00:17.5]} 95.
Bc4 {[%clk 0:00:11.8]} 95... Be3+ {[%clk 0:00:17.1]} 0-1

[Event "*** Titled Tuesday Blitz"]
[Site "Chess.com"]
[Date "2021.03.02"]
[Round "3"]
[White "RobertoJBM"]
[Black "howitzer14"]
[Result "1/2-1/2"]
[WhiteElo "2714"]
[BlackElo "2996"]
[TimeControl "180+1"]
[EndTime "10:32:04 PST"]
[Termination "Game drawn - insufficient material"]

1. d4 {[%clk 0:03:00.9]} 1... d6 {[%clk 0:02:56.4]} 2. e4 {[%clk 0:03:00.3]}
2... Nf6 {[%clk 0:02:48]} 3. Nc3 {[%clk 0:02:59.8]} 3... Nbd7 {[%clk 0:02:48.7]}
4. Nf3 {[%clk 0:02:59.1]} 4... e5 {[%clk 0:02:47.6]} 5. Bc4 {[%clk 0:02:58.8]}
5... Be7 {[%clk 0:02:46.8]} 6. O-O {[%clk 0:02:58.8]} 6... O-O {[%clk
0:02:46.3]} 7. Re1 {[%clk 0:02:58.4]} 7... c6 {[%clk 0:02:44.3]} 8. a4 {[%clk
0:02:58.4]} 8... Qc7 {[%clk 0:02:36]} 9. b3 {[%clk 0:02:57.8]} 9... h6 {[%clk
0:02:32.5]} 10. Ba3 {[%clk 0:02:56.9]} 10... Re8 {[%clk 0:02:32.1]} 11. Qd2
{[%clk 0:02:52.2]} 11... Nf8 {[%clk 0:02:19.4]} 12. h3 {[%clk 0:02:47.1]} 12...
Ng6 {[%clk 0:02:18.7]} 13. Rad1 {[%clk 0:02:36.2]} 13... Bf8 {[%clk 0:02:17]}
14. dxe5 {[%clk 0:02:33.7]} 14... dxe5 {[%clk 0:02:14.7]} 15. Bxf8 {[%clk
0:02:34.6]} 15... Kxf8 {[%clk 0:02:13.6]} 16. Qd6+ {[%clk 0:02:24.7]} 16... Qxd6
{[%clk 0:02:13.5]} 17. Rxd6 {[%clk 0:02:25.6]} 17... Ke7 {[%clk 0:02:09.6]} 18.
Rd2 {[%clk 0:02:25.4]} 18... Bd7 {[%clk 0:02:05.8]} 19. Red1 {[%clk 0:02:25.3]}
19... Rad8 {[%clk 0:02:06.1]} 20. a5 {[%clk 0:02:20.5]} 20... b5 {[%clk
0:01:57.7]} 21. axb6 {[%clk 0:02:13.3]} 21... axb6 {[%clk 0:01:58.6]} 22. Nh2
{[%clk 0:02:06.3]} 22... b5 {[%clk 0:01:55.1]} 23. Bd3 {[%clk 0:02:05.6]} 23...
Be6 {[%clk 0:01:55.1]} 24. Nf1 {[%clk 0:02:02.8]} 24... Nf4 {[%clk 0:01:45.8]}
25. f3 {[%clk 0:02:00.6]} 25... g5 {[%clk 0:01:40.6]} 26. Ne3 {[%clk 0:01:57.5]}
26... h5 {[%clk 0:01:40.4]} 27. Bf1 {[%clk 0:01:51.1]} 27... Rxd2 {[%clk
0:01:38.5]} 28. Rxd2 {[%clk 0:01:52]} 28... Ra8 {[%clk 0:01:38.9]} 29. Kf2
{[%clk 0:01:51.6]} 29... h4 {[%clk 0:01:35.2]} 30. Ne2 {[%clk 0:01:40.4]} 30...
N6h5 {[%clk 0:01:27.5]} 31. Nxf4 {[%clk 0:01:39.7]} 31... exf4 {[%clk 0:01:10]}
32. Nd1 {[%clk 0:01:34.9]} 32... Ng3 {[%clk 0:01:03.8]} 33. Bd3 {[%clk
0:01:24.6]} 33... Kf6 {[%clk 0:01:01.5]} 34. Nc3 {[%clk 0:01:10.6]} 34... Ke5
{[%clk 0:01:01.5]} 35. Rd1 {[%clk 0:01:00.4]} 35... Ra7 {[%clk 0:00:48.7]} 36.
Ke1 {[%clk 0:00:59.9]} 36... Ra3 {[%clk 0:00:44.1]} 37. Ne2 {[%clk 0:00:54.2]}
37... Ra2 {[%clk 0:00:35.4]} 38. Nc3 {[%clk 0:00:51.3]} 38... Ra3 {[%clk
0:00:35.9]} 39. Ne2 {[%clk 0:00:51.3]} 39... Nxe2 {[%clk 0:00:32.1]} 40. Kxe2
{[%clk 0:00:51.6]} 40... Ra2 {[%clk 0:00:29.8]} 41. Rb1 {[%clk 0:00:52]} 41...
c5 {[%clk 0:00:26.7]} 42. Kd2 {[%clk 0:00:50.7]} 42... c4 {[%clk 0:00:26.7]} 43.
bxc4 {[%clk 0:00:49.4]} 43... bxc4 {[%clk 0:00:26.1]} 44. Be2 {[%clk 0:00:49.1]}
44... Kd4 {[%clk 0:00:26.5]} 45. Rb4 {[%clk 0:00:46.6]} 45... Kc5 {[%clk
0:00:20.7]} 46. Rb7 {[%clk 0:00:44.1]} 46... Ra3 {[%clk 0:00:20.7]} 47. c3
{[%clk 0:00:25.4]} 47... Ra2+ {[%clk 0:00:20.9]} 48. Kd1 {[%clk 0:00:25.8]}
48... Ra1+ {[%clk 0:00:21.2]} 49. Kd2 {[%clk 0:00:25.2]} 49... Rg1 {[%clk
0:00:22.1]} 50. Ra7 {[%clk 0:00:17.1]} 50... Rxg2 {[%clk 0:00:21.6]} 51. Ke1
{[%clk 0:00:15.9]} 51... Kd6 {[%clk 0:00:19.6]} 52. Ra6+ {[%clk 0:00:13.1]}
52... Ke7 {[%clk 0:00:18.7]} 53. Ra7+ {[%clk 0:00:11.3]} 53... Kf8 {[%clk
0:00:19.1]} 54. Bf1 {[%clk 0:00:05.4]} 54... Rg3 {[%clk 0:00:18.9]} 55. Kf2
{[%clk 0:00:04.3]} 55... Kg7 {[%clk 0:00:15.3]} 56. Rc7 {[%clk 0:00:03.4]} 56...
Kf6 {[%clk 0:00:15]} 57. Bxc4 {[%clk 0:00:02.2]} 57... Bxc4 {[%clk 0:00:14.4]}
58. Rxc4 {[%clk 0:00:03.1]} 58... Rxh3 {[%clk 0:00:15.3]} 59. Rc6+ {[%clk
0:00:03]} 59... Ke7 {[%clk 0:00:12.6]} 60. Kg2 {[%clk 0:00:02.9]} 60... Rg3+
{[%clk 0:00:12.2]} 61. Kf2 {[%clk 0:00:03.5]} 61... Rh3 {[%clk 0:00:12.7]} 62.
Kg2 {[%clk 0:00:03.3]} 62... Rg3+ {[%clk 0:00:13.2]} 63. Kf2 {[%clk 0:00:03.8]}
63... h3 {[%clk 0:00:14.1]} 64. Rh6 {[%clk 0:00:03.6]} 64... Rg2+ {[%clk
0:00:11.6]} 65. Kf1 {[%clk 0:00:04]} 65... Rh2 {[%clk 0:00:11.9]} 66. c4 {[%clk
0:00:03.8]} 66... Rh1+ {[%clk 0:00:11.1]} 67. Kf2 {[%clk 0:00:04.1]} 67... Kf8
{[%clk 0:00:08.1]} 68. c5 {[%clk 0:00:04.1]} 68... Kg7 {[%clk 0:00:08.5]} 69.
Rh5 {[%clk 0:00:04.6]} 69... Kg6 {[%clk 0:00:08.9]} 70. Rh8 {[%clk 0:00:04.8]}
70... Kg7 {[%clk 0:00:08.2]} 71. Rh5 {[%clk 0:00:04.5]} 71... Rh2+ {[%clk
0:00:07.5]} 72. Kf1 {[%clk 0:00:04.3]} 72... Kg6 {[%clk 0:00:07.4]} 73. Rh8
{[%clk 0:00:03.8]} 73... Rh1+ {[%clk 0:00:05.2]} 74. Kf2 {[%clk 0:00:03.9]}
74... f6 {[%clk 0:00:05.7]} 75. c6 {[%clk 0:00:03.8]} 75... Rh2+ {[%clk
0:00:05.7]} 76. Kf1 {[%clk 0:00:03.4]} 76... Rc2 {[%clk 0:00:06.6]} 77. Rxh3
{[%clk 0:00:03.3]} 77... Rxc6 {[%clk 0:00:07.2]} 78. Rh8 {[%clk 0:00:03.9]}
78... Rc1+ {[%clk 0:00:04.5]} 79. Kg2 {[%clk 0:00:04.3]} 79... Rc2+ {[%clk
0:00:05.4]} 80. Kg1 {[%clk 0:00:04.9]} 80... Rc3 {[%clk 0:00:05.9]} 81. Kg2
{[%clk 0:00:05.4]} 81... Rc7 {[%clk 0:00:06.5]} 82. Rg8+ {[%clk 0:00:05.3]}
82... Rg7 {[%clk 0:00:07.4]} 83. Ra8 {[%clk 0:00:06]} 83... Kh5 {[%clk
0:00:06.7]} 84. Kf2 {[%clk 0:00:06.9]} 84... Rb7 {[%clk 0:00:06.4]} 85. Rh8+
{[%clk 0:00:07.4]} 85... Kg6 {[%clk 0:00:07]} 86. Rd8 {[%clk 0:00:08]} 86...
Rb2+ {[%clk 0:00:06]} 87. Kf1 {[%clk 0:00:08.9]} 87... Kf7 {[%clk 0:00:06.6]}
88. Rd5 {[%clk 0:00:08.6]} 88... Ke6 {[%clk 0:00:06.9]} 89. Ra5 {[%clk
0:00:09.3]} 89... Rc2 {[%clk 0:00:07.1]} 90. Rb5 {[%clk 0:00:09.1]} 90... Kd6
{[%clk 0:00:07.4]} 91. Rf5 {[%clk 0:00:08.7]} 91... Ke7 {[%clk 0:00:06.4]} 92.
Ra5 {[%clk 0:00:09.6]} 92... Kf7 {[%clk 0:00:06.5]} 93. Ra7+ {[%clk 0:00:08.8]}
93... Kg6 {[%clk 0:00:06.6]} 94. Ra6 {[%clk 0:00:09.7]} 94... Rb2 {[%clk
0:00:05.5]} 95. e5 {[%clk 0:00:09.4]} 95... Kf5 {[%clk 0:00:04.6]} 96. exf6
{[%clk 0:00:09.7]} 96... Kg6 {[%clk 0:00:05.2]} 97. f7+ {[%clk 0:00:07.7]} 97...
Kxf7 {[%clk 0:00:05]} 98. Ra5 {[%clk 0:00:08.4]} 98... Kg6 {[%clk 0:00:05]} 99.
Rc5 {[%clk 0:00:07.1]} 99... Kh5 {[%clk 0:00:04.9]} 100. Kg1 {[%clk 0:00:07.5]}
100... Kh4 {[%clk 0:00:04.8]} 101. Kf1 {[%clk 0:00:07.4]} 101... Kg3 {[%clk
0:00:04.1]} 102. Rxg5+ {[%clk 0:00:07]} 102... Kxf3 {[%clk 0:00:04.6]} 103. Kg1
{[%clk 0:00:07.3]} 103... Rb1+ {[%clk 0:00:04.7]} 104. Kh2 {[%clk 0:00:07.7]}
104... Kf2 {[%clk 0:00:02.5]} 105. Ra5 {[%clk 0:00:07.1]} 105... Rb2 {[%clk
0:00:03]} 106. Ra1 {[%clk 0:00:05.7]} 106... f3 {[%clk 0:00:03.2]} 107. Rc1
{[%clk 0:00:04.5]} 107... Ke2 {[%clk 0:00:03.1]} 108. Kg3 {[%clk 0:00:04.5]}
108... Ra2 {[%clk 0:00:01.2]} 109. Rb1 {[%clk 0:00:04.2]} 109... f2 {[%clk
0:00:02.1]} 110. Kg2 {[%clk 0:00:03.7]} 110... Rc2 {[%clk 0:00:01.5]} 111. Ra1
{[%clk 0:00:03.2]} 111... Rd2 {[%clk 0:00:02.4]} 112. Rb1 {[%clk 0:00:03.5]}
112... Rc2 {[%clk 0:00:02.6]} 113. Ra1 {[%clk 0:00:03.7]} 113... Rd2 {[%clk
0:00:02.4]} 114. Rf1 {[%clk 0:00:04.6]} 114... Ke3 {[%clk 0:00:02]} 115. Ra1
{[%clk 0:00:05]} 115... Rd4 {[%clk 0:00:02.4]} 116. Ra3+ {[%clk 0:00:05.1]}
116... Rd3 {[%clk 0:00:02.8]} 117. Rxd3+ {[%clk 0:00:05]} 117... Kxd3 {[%clk
0:00:03.7]} 118. Kxf2 {[%clk 0:00:05.7]} 1/2-1/2

[Event "*** Titled Tuesday Blitz"]
[Site "Chess.com"]
[Date "2021.03.02"]
[Round "4"]
[White "Camels1981"]
[Black "atalz0"]
[Result "0-1"]
[WhiteElo "2312"]
[BlackElo "2477"]
[TimeControl "180+1"]
[EndTime "10:33:44 PST"]
[Termination "atalz0 won by resignation"]

1. e4 {[%clk 0:03:00.9]} 1... c6 {[%clk 0:02:59.9]} 2. d4 {[%clk 0:02:59.6]}
2... d5 {[%clk 0:03:00.8]} 3. exd5 {[%clk 0:03:00]} 3... cxd5 {[%clk 0:03:01.3]}
4. c4 {[%clk 0:03:00.5]} 4... Nf6 {[%clk 0:03:00.4]} 5. Nc3 {[%clk 0:03:01]}
5... Nc6 {[%clk 0:03:00]} 6. Bg5 {[%clk 0:02:59.9]} 6... Be6 {[%clk 0:02:58.1]}
7. a3 {[%clk 0:02:58.9]} 7... g6 {[%clk 0:02:53.3]} 8. Nf3 {[%clk 0:02:58]} 8...
Bg7 {[%clk 0:02:53.7]} 9. c5 {[%clk 0:02:57.5]} 9... O-O {[%clk 0:02:52.5]} 10.
Bb5 {[%clk 0:02:58]} 10... Ne4 {[%clk 0:02:49.7]} 11. Bxc6 {[%clk 0:02:44.3]}
11... bxc6 {[%clk 0:02:46.1]} 12. O-O {[%clk 0:02:43.6]} 12... Bg4 {[%clk
0:02:38.1]} 13. h3 {[%clk 0:02:37]} 0-1

[Event "*** Titled Tuesday Blitz"]
[Site "Chess.com"]
[Date "2021.03.02"]
[Round "4"]
[White "olksuna"]
[Black "sakkikuska"]
[Result "1-0"]
[WhiteElo "2672"]
[BlackElo "2496"]
[TimeControl "180+1"]
[EndTime "10:33:52 PST"]
[Termination "olksuna won by resignation"]

1. e4 {[%clk 0:03:00.9]} 1... c5 {[%clk 0:02:59.7]} 2. Nf3 {[%clk 0:03:00.9]}
2... e6 {[%clk 0:03:00.4]} 3. d4 {[%clk 0:03:00.9]} 3... cxd4 {[%clk 0:03:01.3]}
4. Nxd4 {[%clk 0:03:01.7]} 4... Nc6 {[%clk 0:03:01.9]} 5. Nc3 {[%clk 0:03:00.9]}
5... a6 {[%clk 0:03:02.1]} 6. Be2 {[%clk 0:03:00.2]} 6... Qc7 {[%clk 0:03:01.7]}
7. O-O {[%clk 0:03:00]} 7... b5 {[%clk 0:03:01.5]} 8. Nxc6 {[%clk 0:02:58.8]}
8... dxc6 {[%clk 0:03:02.4]} 9. a4 {[%clk 0:02:56.1]} 9... b4 {[%clk 0:03:02.5]}
10. Nb1 {[%clk 0:02:55.5]} 10... Bb7 {[%clk 0:02:58.2]} 11. Nd2 {[%clk 0:02:55]}
11... c5 {[%clk 0:02:52.7]} 12. Bd3 {[%clk 0:02:55]} 12... Nf6 {[%clk
0:02:51.2]} 13. Qe2 {[%clk 0:02:55.1]} 13... Bd6 {[%clk 0:02:48.8]} 14. h3
{[%clk 0:02:49.2]} 14... Nh5 {[%clk 0:02:44]} 15. Qxh5 {[%clk 0:02:45.2]} 1-0

[Event "*** Titled Tuesday Blitz"]
[Site "Chess.com"]
[Date "2021.03.02"]
[Round "4"]
[White "Volodar_Murzin"]
[Black "1800_strength"]
[Result "1-0"]
[WhiteElo "2699"]
[BlackElo "2505"]
[TimeControl "180+1"]
[EndTime "10:35:04 PST"]
[Termination "Volodar_Murzin won by resignation"]

1. e4 {[%clk 0:03:00.9]} 1... g6 {[%clk 0:02:55.9]} 2. d4 {[%clk 0:02:59.7]}
2... Bg7 {[%clk 0:02:56.8]} 3. Nf3 {[%clk 0:02:59.4]} 3... c6 {[%clk 0:02:55.5]}
4. Bd3 {[%clk 0:02:58]} 4... d5 {[%clk 0:02:55.7]} 5. Nbd2 {[%clk 0:02:57.1]}
5... dxe4 {[%clk 0:02:47.3]} 6. Nxe4 {[%clk 0:02:56.9]} 6... Nf6 {[%clk
0:02:48.2]} 7. Nxf6+ {[%clk 0:02:56.2]} 7... Bxf6 {[%clk 0:02:49.1]} 8. Bh6
{[%clk 0:02:54.9]} 8... Bf5 {[%clk 0:02:45.8]} 9. O-O {[%clk 0:02:53]} 9... Nd7
{[%clk 0:02:33.7]} 10. Re1 {[%clk 0:02:49.2]} 10... Qb6 {[%clk 0:02:28.2]} 11.
Bxf5 {[%clk 0:02:43.4]} 11... gxf5 {[%clk 0:02:26.7]} 12. Qd3 {[%clk 0:02:42.4]}
12... Qb5 {[%clk 0:02:12.9]} 13. c4 {[%clk 0:02:40.4]} 13... Qa5 {[%clk
0:02:10.8]} 14. Bd2 {[%clk 0:02:34.7]} 14... Qa6 {[%clk 0:02:07.3]} 15. a4
{[%clk 0:02:26.6]} 15... O-O {[%clk 0:01:43.3]} 16. Qxf5 {[%clk 0:02:22.5]}
16... Qxc4 {[%clk 0:01:42.8]} 17. Qxd7 {[%clk 0:02:21.3]} 1-0

[Event "*** Titled Tuesday Blitz"]
[Site "Chess.com"]
[Date "2021.03.02"]
[Round "4"]
[White "Kaslask"]
[Black "tgpgoat"]
[Result "1-0"]
[WhiteElo "2284"]
[BlackElo "2092"]
[TimeControl "180+1"]
[EndTime "10:35:26 PST"]
[Termination "Kaslask won by resignation"]

1. e4 {[%clk 0:03:00.9]} 1... c5 {[%clk 0:02:56.2]} 2. Nc3 {[%clk 0:02:59.4]}
2... Nc6 {[%clk 0:02:54.4]} 3. f4 {[%clk 0:02:58.3]} 3... g6 {[%clk 0:02:54.3]}
4. Bb5 {[%clk 0:02:57.9]} 4... Bg7 {[%clk 0:02:52.9]} 5. Nf3 {[%clk 0:02:57.9]}
5... e6 {[%clk 0:02:53]} 6. Bxc6 {[%clk 0:02:51.9]} 6... bxc6 {[%clk 0:02:53.5]}
7. e5 {[%clk 0:02:51.1]} 7... d5 {[%clk 0:02:52.9]} 8. exd6 {[%clk 0:02:49.3]}
8... Qxd6 {[%clk 0:02:51.8]} 9. d3 {[%clk 0:02:49.2]} 9... Nf6 {[%clk
0:02:45.4]} 10. O-O {[%clk 0:02:42.5]} 10... O-O {[%clk 0:02:44.2]} 11. Rb1
{[%clk 0:02:25.2]} 11... Ba6 {[%clk 0:02:38.1]} 12. b3 {[%clk 0:02:19]} 12...
Ng4 {[%clk 0:02:30.4]} 13. Ne4 {[%clk 0:02:16.6]} 13... Bd4+ {[%clk 0:02:21]}
14. Kh1 {[%clk 0:02:13.8]} 14... Qd8 {[%clk 0:02:12]} 15. Nxd4 {[%clk
0:02:11.8]} 15... Nxh2 {[%clk 0:02:11.6]} 16. Kxh2 {[%clk 0:01:57.9]} 16... cxd4
{[%clk 0:02:11.1]} 17. Qf3 {[%clk 0:01:50.5]} 17... Qd5 {[%clk 0:02:02]} 18.
Nf6+ {[%clk 0:01:45.1]} 1-0

[Event "*** Titled Tuesday Blitz"]
[Site "Chess.com"]
[Date "2021.03.02"]
[Round "4"]
[White "Rozhkov_V"]
[Black "JimmmyZhang"]
[Result "1-0"]
[WhiteElo "2364"]
[BlackElo "2482"]
[TimeControl "180+1"]
[EndTime "10:35:48 PST"]
[Termination "Rozhkov_V won by resignation"]

1. e4 {[%clk 0:03:00.9]} 1... e5 {[%clk 0:02:57.8]} 2. Nf3 {[%clk 0:03:01.2]}
2... Nc6 {[%clk 0:02:57.3]} 3. d4 {[%clk 0:03:01.5]} 3... exd4 {[%clk
0:02:57.1]} 4. Bc4 {[%clk 0:03:02]} 4... Be7 {[%clk 0:02:55.8]} 5. c3 {[%clk
0:03:01.7]} 5... d6 {[%clk 0:02:56]} 6. cxd4 {[%clk 0:03:00.8]} 6... Nf6 {[%clk
0:02:56.5]} 7. Nc3 {[%clk 0:03:01.3]} 7... O-O {[%clk 0:02:55.1]} 8. O-O {[%clk
0:03:01.6]} 8... Nxe4 {[%clk 0:02:55.1]} 9. Nxe4 {[%clk 0:03:01.2]} 9... d5
{[%clk 0:02:55.5]} 10. Bd3 {[%clk 0:03:01.3]} 10... dxe4 {[%clk 0:02:53.8]} 11.
Bxe4 {[%clk 0:03:01.9]} 11... Bg4 {[%clk 0:02:54.1]} 12. Be3 {[%clk 0:03:00.2]}
12... Bf6 {[%clk 0:02:53]} 13. h3 {[%clk 0:02:52.2]} 13... Bxf3 {[%clk
0:02:49.7]} 14. Bxf3 {[%clk 0:02:46.9]} 14... Nxd4 {[%clk 0:02:41.7]} 15. Bxb7
{[%clk 0:02:46.2]} 15... Rb8 {[%clk 0:02:41]} 16. Be4 {[%clk 0:02:46.2]} 16...
Ne6 {[%clk 0:02:39.4]} 17. Qc2 {[%clk 0:02:32.9]} 17... Rxb2 {[%clk 0:02:33.7]}
18. Bxh7+ {[%clk 0:02:32.3]} 18... Kh8 {[%clk 0:02:33.5]} 19. Qe4 {[%clk
0:02:32.8]} 19... Qd6 {[%clk 0:02:24.7]} 20. Bf5 {[%clk 0:02:30.8]} 20... Rb4
{[%clk 0:02:21.6]} 21. Qf3 {[%clk 0:02:24.5]} 21... g6 {[%clk 0:02:20.1]} 22.
Bxe6 {[%clk 0:02:24.4]} 22... Qxe6 {[%clk 0:02:19.6]} 23. Bc5 {[%clk 0:02:24.1]}
23... Bxa1 {[%clk 0:02:12.2]} 24. Bxb4 {[%clk 0:02:20.6]} 24... Bg7 {[%clk
0:01:57.2]} 25. Bxf8 {[%clk 0:02:19.6]} 25... Bxf8 {[%clk 0:01:57.5]} 26. Qa8
{[%clk 0:02:16.8]} 26... Kg7 {[%clk 0:01:57]} 27. Qxa7 {[%clk 0:02:16.6]} 27...
Bd6 {[%clk 0:01:57.7]} 28. Qd4+ {[%clk 0:02:14.6]} 28... f6 {[%clk 0:01:58]} 29.
a4 {[%clk 0:02:13.5]} 29... c5 {[%clk 0:01:56.9]} 30. Qe3 {[%clk 0:02:11.7]}
30... Qd7 {[%clk 0:01:55.4]} 31. a5 {[%clk 0:02:11.7]} 31... Qc7 {[%clk
0:01:55.6]} 32. a6 {[%clk 0:02:11]} 32... Qb6 {[%clk 0:01:55.8]} 33. Ra1 {[%clk
0:02:10]} 33... Be5 {[%clk 0:01:54.9]} 34. Qxe5 {[%clk 0:02:06.8]} 34... fxe5
{[%clk 0:01:53.3]} 35. a7 {[%clk 0:02:07]} 1-0